fUSD/lending_fUSD_20240327
["ID","MTS","AMOUNT","RATE_DAILY","PERIOD"]
[320743472,1711543883097,-500.0,0.0005589,120]
[320743473,1711543883107,-500.0,0.0005589,120]
[320743474,1711543883117,-498.49,0.0005589,120]
[320743475,1711543883126,-500.0,0.0005589,120]
[320743476,1711543883136,-500.0,0.0005589,120]
[320743477,1711543883145,-500.0,0.0005589,120]
[320743478,1711543883155,-500.0,0.0005589,120]
[320743479,1711543883164,-518.1,0.0005589,120]
[320743480,1711543883174,-500.0,0.0005589,120]
[320743481,1711543883183,-500.0,0.0005589,120]
[320743482,1711543883192,-493.74,0.0005589,120]
[320743483,1711543883202,-500.0,0.0005589,120]
[320743484,1711543883211,-500.0,0.0005589,120]
[320743485,1711543883221,-500.0,0.0005589,120]
[320743486,1711543883230,-526.24,0.0005589,120]
[320743487,1711543883239,-500.0,0.0005589,120]
[320743488,1711543883248,-500.0,0.0005589,120]
[320743489,1711543883257,-500.0,0.0005589,120]
[320743490,1711543883266,-500.0,0.0005589,120]
[320743491,1711543883275,-509.36,0.0005589,120]
[320743492,1711543883285,-327.66,0.0005589,120]
[320743493,1711543883294,-669.48,0.0005589,120]
[320743494,1711543883304,-500.0,0.0005589,120]
[320743495,1711543883313,-306.68,0.0005589,120]
[320743496,1711543883322,-525.09,0.0005589,120]
[320743497,1711543883331,-316.78,0.0005589,120]
[320743498,1711543883341,-500.0,0.0005589,120]
[320743499,1711543883351,-500.0,0.0005589,120]
[320743500,1711543883360,-500.0,0.0005589,120]
[320743501,1711543883370,-500.0,0.0005589,120]
[320743502,1711543883379,-500.0,0.0005589,120]
[320743503,1711543883388,-516.74,0.0005589,120]
[320743504,1711543883398,-500.0,0.0005589,60]
[320743505,1711543883407,-500.0,0.0005589,60]
[320743506,1711543883416,-1181.20468984,0.0005589,120]
[320743507,1711543883425,-500.0,0.0005589,120]
[320743508,1711543883435,-500.0,0.0005589,120]
[320743509,1711543883444,-500.0,0.0005589,120]
[320743510,1711543883453,-500.0,0.0005589,120]
[320743511,1711543883463,-500.0,0.0005589,120]
[320743512,1711543883472,-500.0,0.0005589,120]
[320743513,1711543883481,-500.0,0.0005589,120]
[320743514,1711543883490,-1126.03,0.0005589,120]
[320743515,1711543883499,-620.43,0.0005589,120]
[320743516,1711543883508,-500.0,0.0005589,120]
[320743517,1711543883517,-1965.76,0.0005589,120]
[320743518,1711543883526,-500.0,0.0005589,120]
[320743519,1711543883536,-921.37,0.0005589,120]
[320743520,1711543883545,-2740.9,0.0005589,120]
[320743521,1711543883554,-500.0,0.0005589,120]
[320743522,1711543883564,-5471.51,0.0005589,120]
[320743523,1711543883573,-500.0,0.0005589,120]
[320743524,1711543883582,-500.0,0.0005589,120]
[320743525,1711543883593,-500.0,0.0005589,120]
[320743526,1711543883603,-884.38,0.0005589,120]
[320743527,1711543883612,-500.0,0.0005589,120]
[320743528,1711543883622,-1170.95,0.0005589,120]
[320743529,1711543883631,-500.0,0.0005589,120]
[320743530,1711543883642,-1057.95,0.0005589,120]
[320743531,1711543883651,-533.04,0.0005589,120]
[320743532,1711543883661,-2051.46,0.0005589,120]
[320743533,1711543883671,-500.0,0.0005589,120]
[320743534,1711543883681,-500.0,0.0005589,120]
[320743535,1711543883690,-500.0,0.0005589,120]
[320743536,1711543883699,-702.45,0.0005589,120]
[320743537,1711543883710,-545.51,0.0005589,120]
[320743538,1711543883719,-931.2,0.0005589,120]
[320743539,1711543883729,-3285.02,0.0005589,120]
[320743540,1711543883739,-512.74,0.0005589,120]
[320743541,1711543883748,-500.0,0.0005589,120]
[320743542,1711543883759,-596.37,0.0005589,120]
[320743543,1711543883768,-500.0,0.0005589,120]
[320743544,1711543883778,-500.0,0.0005589,120]
[320743545,1711543883787,-500.0,0.0005589,120]
[320743546,1711543883798,-643.73,0.0005589,120]
[320743547,1711543883808,-340.34,0.0005589,120]
[320743548,1711543883818,-500.0,0.0005589,120]
[320743549,1711543883827,-500.0,0.0005589,120]
[320743550,1711543883837,-503.92,0.0005589,120]
[320743551,1711543883848,-500.0,0.0005589,120]
[320743552,1711543883858,-500.0,0.0005589,120]
[320743553,1711543883868,-604.98,0.0005589,120]
[320743554,1711543883878,-500.0,0.0005589,120]
[320743555,1711543883888,-668.88,0.0005589,120]
[320743556,1711543883898,-1068.26,0.0005589,120]
[320743557,1711543883908,-792.02,0.0005589,120]
[320743558,1711543883918,-956.84,0.0005589,120]
[320743559,1711543883928,-1164.57,0.0005589,120]
[320743560,1711543883937,-500.0,0.0005589,120]
[320743561,1711543883946,-500.0,0.0005589,120]
[320743562,1711543883956,-663.5,0.0005589,120]
[320743563,1711543883965,-500.0,0.0005589,120]
[320743564,1711543883975,-151.0,0.0005589,120]
[320743565,1711543883984,-575.0,0.0005589,120]
[320743566,1711543883994,-1108.61,0.0005589,120]
[320743567,1711543884003,-1061.65,0.0005589,120]
[320743568,1711543884012,-865.88,0.0005589,120]
[320743569,1711543884022,-500.0,0.0005589,120]
[320743570,1711543884032,-521.11347212,0.0005589,120]
[320743571,1711543884042,-500.0,0.0005589,120]
[320743572,1711543884051,-500.0,0.0005589,120]
[320743573,1711543884061,-500.0,0.0005589,120]
[320743574,1711543884071,-500.0,0.0005589,120]
[320743575,1711543884081,-151.0,0.0005589,120]
[320743576,1711543884092,-2925.46,0.0005589,120]
[320743577,1711543884102,-500.0,0.0005589,120]
[320743578,1711543884111,-151.0,0.0005589,120]
[320743579,1711543884121,-500.0,0.0005589,120]
[320743580,1711543884131,-500.0,0.0005589,120]
[320743581,1711543884140,-798.22,0.0005589,120]
[320743582,1711543884150,-670.39,0.0005589,120]
[320743583,1711543884160,-1050.1,0.0005589,120]
[320743584,1711543884169,-698.77,0.0005589,120]
[320743585,1711543884179,-831.36,0.0005589,60]
[320743586,1711543884189,-516.38,0.0005589,120]
[320743587,1711543884198,-813.47,0.0005589,120]
[320743588,1711543884208,-805.48,0.0005589,120]
[320743589,1711543884218,-895.29,0.0005589,120]
[320743590,1711543884229,-566.16,0.0005589,120]
[320743591,1711543884239,-500.0,0.0005589,120]
[320743592,1711543884250,-1059.6,0.0005589,120]
[320743593,1711543884261,-2482.66,0.0005589,120]
[320743594,1711543884271,-500.0,0.0005589,120]
[320743595,1711543884282,-624.76,0.0005589,120]
[320743596,1711543884292,-1090.65,0.0005589,120]
[320743597,1711543884304,-500.0,0.0005589,120]
[320743598,1711543884314,-503.76,0.0005589,120]
[320743599,1711543884324,-596.27,0.0005589,120]
[320743600,1711543884334,-475.76,0.0005589,120]
[320743601,1711543884346,-730.57,0.0005589,120]
[320743602,1711543884356,-500.0,0.0005589,120]
[320743603,1711543884367,-532.43,0.0005589,120]
[320743604,1711543884377,-500.0,0.0005589,120]
[320743605,1711543884386,-1096.84,0.0005589,120]
[320743606,1711543884395,-982.22,0.0005589,120]
[320743607,1711543884404,-500.0,0.0005589,120]
[320743608,1711543884415,-2012.56,0.0005589,120]
[320743609,1711543884424,-500.0,0.0005589,120]
[320743610,1711543884434,-500.0,0.0005589,120]
[320743611,1711543884443,-2118.58,0.0005589,120]
[320743612,1711543884453,-888.32,0.0005589,120]
[320743613,1711543884463,-500.0,0.0005589,120]
[320743614,1711543884473,-500.0,0.0005589,120]
[320743615,1711543884482,-843.94,0.0005589,120]
[320743616,1711543884492,-952.22,0.0005589,120]
[320743617,1711543884502,-2323.15,0.0005589,120]
[320743618,1711543884511,-500.0,0.0005589,120]
[320743619,1711543884521,-670.15,0.0005589,120]
[320743620,1711543884532,-1267.74,0.0005589,120]
[320743621,1711543884542,-646.84,0.0005589,120]
[320743622,1711543884551,-500.0,0.0005589,120]
[320743623,1711543884561,-1027.05,0.0005589,120]
[320743624,1711543884571,-500.0,0.0005589,120]
[320743625,1711543884581,-500.0,0.0005589,120]
[320743626,1711543884593,-500.0,0.0005589,120]
[320743627,1711543884602,-1044.31,0.0005589,120]
[320743628,1711543884612,-500.0,0.0005589,120]
[320743629,1711543884622,-2014.61,0.0005589,120]
[320743630,1711543884632,-500.0,0.0005589,120]
[320743631,1711543884642,-852.33,0.0005589,120]
[320743632,1711543884653,-500.0,0.0005589,120]
[320743633,1711543884664,-559.0,0.0005589,120]
[320743634,1711543884674,-500.0,0.0005589,120]
[320743635,1711543884684,-500.0,0.0005589,120]
[320743636,1711543884695,-632.68,0.0005589,120]
[320743637,1711543884706,-500.0,0.0005589,120]
[320743638,1711543884716,-500.0,0.0005589,120]
[320743639,1711543884727,-509.92,0.0005589,120]
[320743640,1711543884740,-500.0,0.0005589,120]
[320743641,1711543884761,-797.02,0.0005589,30]
[320743642,1711543884784,-500.0,0.0005589,120]
[320743643,1711543884807,-693.91,0.0005589,120]
[320743644,1711543884830,-818.9,0.0005589,120]
[320743645,1711543884854,-903.82,0.0005589,120]
[320743646,1711543884876,-500.0,0.0005589,120]
[320743647,1711543884898,-500.0,0.0005589,120]
[320743648,1711543884921,-500.0,0.0005589,120]
[320743649,1711543884943,-734.77,0.0005589,120]
[320743650,1711543884952,-500.0,0.0005589,120]
[320743651,1711543884963,-645.24,0.0005589,120]
[320743652,1711543884972,-763.33,0.0005589,120]
[320743653,1711543884982,-587.45,0.0005589,120]
[320743654,1711543884992,-785.61,0.0005589,120]
[320743655,1711543885002,-608.04,0.0005589,120]
[320743656,1711543885012,-500.0,0.0005589,120]
[320743657,1711543885022,-713.05,0.0005589,120]
[320743658,1711543885031,-500.0,0.0005589,120]
[320743659,1711543885041,-524.62,0.0005589,120]
[320743660,1711543885051,-1415.79,0.0005589,120]
[320743661,1711543885060,-788.63,0.0005589,120]
[320743662,1711543885070,-2273.07,0.0005589,120]
[320743663,1711543885094,-500.0,0.0005589,120]
[320743664,1711543885108,-2011.71,0.0005589,120]
[320743665,1711543885118,-500.0,0.0005589,120]
[320743666,1711543885129,-677.22,0.0005589,120]
[320743667,1711543885139,-500.0,0.0005589,120]
[320743668,1711543885149,-807.51,0.0005589,120]
[320743669,1711543885159,-500.0,0.0005589,120]
[320743670,1711543885169,-800.48,0.0005589,120]
[320743671,1711543885179,-755.18,0.0005589,120]
[320743672,1711543885189,-500.0,0.0005589,120]
[320743673,1711543885199,-500.0,0.0005589,120]
[320743674,1711543885209,-842.7,0.0005589,120]
[320743675,1711543885220,-1004.28,0.0005589,120]
[320743676,1711543885231,-2063.63,0.0005589,120]
[320743677,1711543885241,-500.0,0.0005589,120]
[320743678,1711543885252,-500.0,0.0005589,120]
[320743679,1711543885263,-500.0,0.0005589,120]
[320743680,1711543885274,-500.0,0.0005589,120]
[320743681,1711543885285,-547.62,0.0005589,120]
[320743682,1711543885295,-500.0,0.0005589,120]
[320743683,1711543885305,-500.0,0.0005589,120]
[320743684,1711543885315,-500.0,0.0005589,120]
[320743685,1711543885325,-676.12,0.0005589,120]
[320743686,1711543885335,-500.0,0.0005589,120]
[320743687,1711543885346,-500.0,0.0005589,120]
[320743688,1711543885357,-500.0,0.0005589,120]
[320743689,1711543885367,-500.0,0.0005589,120]
[320743690,1711543885377,-391.2,0.0005589,120]
[320743691,1711543885387,-500.0,0.0005589,120]
[320743692,1711543885398,-500.0,0.0005589,120]
[320743693,1711543885408,-500.0,0.0005589,120]
[320743694,1711543885418,-500.0,0.0005589,120]
[320743695,1711543885428,-559.56,0.0005589,120]
[320743696,1711543885438,-500.0,0.0005589,120]
[320743697,1711543885449,-443.34,0.0005589,120]
[320743698,1711543885459,-344.72,0.0005589,120]
[320743699,1711543885469,-406.5,0.0005589,120]
[320743700,1711543885479,-500.0,0.0005589,120]
[320743701,1711543885488,-760.12,0.0005589,120]
[320743702,1711543885499,-2308.15,0.0005589,120]
[320743703,1711543885509,-2030.15,0.0005589,120]
[320743704,1711543885520,-500.0,0.0005589,120]
[320743705,1711543885530,-895.23,0.0005589,120]
[320743706,1711543885540,-615.23,0.0005589,120]
[320743707,1711543885551,-500.0,0.0005589,120]
[320743708,1711543885561,-500.0,0.0005589,120]
[320743709,1711543885572,-500.0,0.0005589,120]
[320743710,1711543885582,-292.34,0.0005589,120]
[320743711,1711543885594,-500.0,0.0005589,120]
[320743712,1711543885604,-500.0,0.0005589,120]
[320743713,1711543885614,-500.0,0.0005589,120]
[320743714,1711543885625,-988.02,0.0005589,120]
[320743715,1711543885635,-500.0,0.0005589,120]
[320743716,1711543885648,-500.0,0.0005589,120]
[320743717,1711543885658,-1436.62,0.0005589,120]
[320743718,1711543885668,-500.0,0.0005589,120]
[320743719,1711543885679,-500.0,0.0005589,120]
[320743720,1711543885690,-783.0,0.0005589,120]
[320743721,1711543885700,-500.0,0.0005589,120]
[320743722,1711543885710,-500.0,0.0005589,120]
[320743723,1711543885720,-500.0,0.0005589,120]
[320743724,1711543885731,-500.0,0.0005589,120]
[320743725,1711543885742,-1016.45,0.0005589,120]
[320743726,1711543885752,-521.03,0.0005589,120]
[320743727,1711543885763,-612.71,0.0005589,120]
[320743728,1711543885774,-645.26,0.0005589,120]
[320743729,1711543885786,-545.88,0.0005589,120]
[320743730,1711543885797,-641.38,0.0005589,120]
[320743731,1711543885807,-877.53,0.0005589,120]
[320743732,1711543885818,-500.0,0.0005589,120]
[320743733,1711543885828,-10990.32,0.0005589,120]
[320743734,1711543885839,-500.0,0.0005589,120]
[320743735,1711543885850,-500.0,0.0005589,120]
[320743736,1711543885860,-500.0,0.0005589,120]
[320743737,1711543885870,-500.0,0.0005589,120]
[320743738,1711543885881,-2044.63,0.0005589,120]
[320743739,1711543885891,-500.0,0.0005589,7]
[320743740,1711543885902,-392.18,0.0005589,120]
[320743741,1711543885912,-4311.07,0.0005589,120]
[320743742,1711543885922,-500.0,0.0005589,120]
[320743743,1711543885933,-500.0,0.0005589,120]
[320743744,1711543885943,-1347.96,0.0005589,120]
[320743745,1711543885953,-500.0,0.0005589,120]
[320743746,1711543885964,-500.0,0.0005589,120]
[320743747,1711543885973,-500.0,0.0005589,120]
[320743748,1711543885983,-474.82,0.0005589,120]
[320743749,1711543885993,-500.0,0.0005589,120]
[320743750,1711543886003,-976.2,0.0005589,120]
[320743751,1711543886014,-1434.29,0.0005589,120]
[320743752,1711543886025,-204.38,0.0005589,120]
[320743753,1711543886035,-839.83,0.0005589,120]
[320743754,1711543886044,-7133.78,0.0005589,120]
[320743755,1711543886054,-500.0,0.0005589,120]
[320743756,1711543886064,-545.62,0.0005589,120]
[320743757,1711543886074,-500.0,0.0005589,120]
[320743758,1711543886085,-500.0,0.0005589,120]
[320743759,1711543886095,-500.0,0.0005589,120]
[320743760,1711543886105,-500.0,0.0005589,120]
[320743761,1711543886115,-500.0,0.0005589,120]
[320743762,1711543886125,-500.0,0.0005589,120]
[320743763,1711543886136,-464.31400705,0.0005589,120]
[320743764,1711543886147,-500.0,0.0005589,120]
[320743765,1711543886157,-531.34,0.0005589,120]
[320743766,1711543886167,-5109.09,0.0005589,120]
[320743767,1711543886178,-500.0,0.0005589,120]
[320743768,1711543886190,-7954.08,0.0005589,120]
[320743769,1711543886410,-1365.01,0.0005589,120]
[320743770,1711543886421,-500.0,0.0005589,120]
[320743771,1711543886431,-3477.52,0.0005589,120]
[320743772,1711543886441,-500.0,0.0005589,120]
[320743773,1711543886450,-1944.43,0.0005589,120]
[320743774,1711543886460,-500.0,0.0005589,120]
[320743775,1711543886470,-500.0,0.0005589,120]
[320743776,1711543886479,-22670.34,0.0005589,120]
[320743777,1711543886488,-610.8,0.0005589,120]
[320743778,1711543886498,-726.92,0.0005589,120]
[320743779,1711543886507,-15912.74,0.0005589,120]
[320743780,1711543886516,-500.0,0.0005589,120]
[320743781,1711543886526,-500.0,0.0005589,120]
[320743782,1711543886536,-5197.8,0.0005589,120]
[320743783,1711543886545,-500.0,0.0005589,120]
[320743784,1711543886555,-500.0,0.0005589,120]
[320743785,1711543886565,-500.0,0.0005589,120]
[320743786,1711543886575,-500.0,0.0005589,120]
[320743787,1711543886584,-500.0,0.0005589,120]
[320743788,1711543886595,-3753.0,0.0005589,120]
[320743789,1711543886604,-5025.57,0.0005589,120]
[320743790,1711543886613,-1032.54,0.0005589,120]
[320743791,1711543886623,-2884.81,0.0005589,120]
[320743792,1711543886632,-525.19,0.0005589,120]
[320743793,1711543886642,-500.0,0.0005589,120]
[320743794,1711543886652,-500.0,0.0005589,120]
[320743795,1711543886663,-500.0,0.0005589,120]
[320743796,1711543886673,-500.0,0.0005589,120]
[320743797,1711543886682,-832.53,0.0005589,120]
[320743798,1711543886691,-1554.43,0.0005589,120]
[320743799,1711543886702,-5602.14,0.0005589,120]
[320743800,1711543886712,-2733.23,0.0005589,120]
[320743801,1711543886721,-500.0,0.0005589,120]
[320743802,1711543886732,-1416.51,0.0005589,120]
[320743803,1711543886742,-508.12,0.0005589,120]
[320743804,1711543886751,-1108.32,0.0005589,120]
[320743805,1711543886761,-2082.72,0.0005589,120]
[320743806,1711543886773,-3295.4,0.0005589,120]
[320743807,1711543886783,-500.0,0.0005589,120]
[320743808,1711543886793,-3406.52,0.0005589,120]
[320743809,1711543886804,-79296.15,0.0005589,120]
[320743810,1711543886815,-500.0,0.0005589,120]
[320743811,1711543886825,-500.0,0.0005589,120]
[320743812,1711543886835,-21230.92,0.0005589,120]
[320743813,1711543886845,-786.05,0.0005589,120]
[320743814,1711543886854,-575.24,0.0005589,120]
[320743815,1711543886864,-500.0,0.0005589,120]
[320743816,1711543886874,-3470.89,0.0005589,120]
[320743817,1711543886883,-794.6,0.0005589,120]
[320743818,1711543886892,-1436.29,0.0005589,120]
[320743819,1711543886902,-500.0,0.0005589,120]
[320743820,1711543886912,-4270.02,0.0005589,120]
[320743821,1711543886921,-500.0,0.0005589,120]
[320743822,1711543886930,-13832.31,0.0005589,120]
[320743823,1711543886940,-2558.6,0.0005589,120]
[320743824,1711543886950,-9397.34,0.0005589,120]
[320743825,1711543886959,-500.0,0.0005589,120]
[320743826,1711543886969,-1488.59,0.0005589,120]
[320743827,1711543886978,-4828.26,0.0005589,120]
[320743828,1711543886988,-1008.05,0.0005589,120]
[320743829,1711543886997,-3178.59,0.0005589,120]
[320743830,1711543887006,-544.36,0.0005589,120]
[320743831,1711543887016,-500.0,0.0005589,120]
[320743832,1711543887025,-500.0,0.0005589,120]
[320743833,1711543887035,-3085.25,0.0005589,120]
[320743834,1711543887044,-582.28,0.0005589,120]
[320743835,1711543887053,-751.31,0.0005589,120]
[320743836,1711543887062,-2368.29,0.0005589,120]
[320743837,1711543887071,-1000.0,0.0005589,14]
[320743838,1711543887081,-2699.02,0.0005589,120]
[320743839,1711543887091,-5971.8,0.0005589,120]
[320743840,1711543887101,-3173.89,0.0005589,120]
[320743841,1711543887112,-500.0,0.0005589,120]
[320743842,1711543887122,-500.0,0.0005589,120]
[320743843,1711543887131,-500.0,0.0005589,120]
[320743844,1711543887141,-500.0,0.0005589,120]
[320743845,1711543887151,-500.0,0.0005589,120]
[320743846,1711543887160,-5725.46,0.0005589,120]
[320743847,1711543887170,-2196.71,0.0005589,120]
[320743848,1711543887179,-500.0,0.0005589,120]
[320743849,1711543887189,-500.0,0.0005589,120]
[320743850,1711543887198,-775.97,0.0005589,120]
[320743851,1711543887208,-4233.1,0.0005589,120]
[320743852,1711543887217,-500.0,0.0005589,120]
[320743853,1711543887228,-500.0,0.0005589,120]
[320743854,1711543887237,-3326.63,0.0005589,120]
[320743855,1711543887247,-14051.88,0.0005589,120]
[320743856,1711543887257,-500.0,0.0005589,120]
[320743857,1711543887267,-2626.24,0.0005589,120]
[320743858,1711543887277,-5132.44,0.0005589,120]
[320743859,1711543887287,-578.21,0.0005589,120]
[320743860,1711543887297,-1494.67,0.0005589,120]
[320743861,1711543887305,-1284.88,0.0005589,120]
[320743862,1711543887315,-5966.14,0.0005589,120]
[320743863,1711543887325,-500.0,0.0005589,120]
[320743864,1711543887335,-3897.67,0.0005589,120]
[320743865,1711543887349,-500.0,0.0005589,120]
[320743866,1711543887358,-500.0,0.0005589,120]
[320743867,1711543887368,-500.0,0.0005589,120]
[320743868,1711543887377,-500.0,0.0005589,120]
[320743869,1711543887387,-638.55,0.0005589,120]
[320743870,1711543887397,-1510.54,0.0005589,120]
[320743871,1711543887408,-2090.88,0.0005589,120]
[320743872,1711543887419,-740.92,0.0005589,120]
[320743873,1711543887429,-500.0,0.0005589,120]
[320743874,1711543887439,-289.7,0.0005589,120]
[320743875,1711543887449,-826.27,0.0005589,120]
[320743876,1711543887459,-1852.95,0.0005589,120]
[320743877,1711543887469,-6306.66,0.0005589,120]
[320743878,1711543887478,-1088.64,0.0005589,120]
[320743879,1711543887488,-5336.71,0.0005589,120]
[320743880,1711543887498,-2495.6,0.0005589,120]
[320743881,1711543887508,-3796.34,0.0005589,120]
[320743882,1711543887518,-3525.02,0.0005589,120]
[320743883,1711543887528,-500.0,0.0005589,120]
[320743884,1711543887539,-500.0,0.0005589,120]
[320743885,1711543887549,-52702.13,0.0005589,120]
[320743886,1711543887559,-4382.0,0.0005589,120]
[320743887,1711543887569,-6749.09,0.0005589,120]
[320743888,1711543887580,-5317.23,0.0005589,120]
[320743889,1711543887590,-500.0,0.0005589,120]
[320743890,1711543887603,-1020.49,0.0005589,120]
[320743891,1711543887613,-500.0,0.0005589,120]
[320743892,1711543887624,-500.0,0.0005589,120]
[320743893,1711543887634,-9670.8,0.0005589,120]
[320743894,1711543887646,-2509.66,0.0005589,120]
[320743895,1711543887660,-500.0,0.0005589,120]
[320743896,1711543887670,-592.67448409,0.0005589,120]
[320743897,1711543887681,-3800.06,0.0005589,120]
[320743898,1711543887690,-500.0,0.0005589,120]
[320743899,1711543887701,-43977.12,0.0005589,120]
[320743900,1711543887711,-500.0,0.0005589,120]
[320743901,1711543887721,-1033.96,0.0005589,120]
[320743902,1711543887732,-2224.07,0.0005589,120]
[320743903,1711543887743,-6046.1,0.0005589,120]
[320743904,1711543887754,-1400.16,0.0005589,120]
[320743905,1711543887764,-3536.01,0.0005589,120]
[320743906,1711543887774,-3289.32,0.0005589,120]
[320743907,1711543887784,-500.0,0.0005589,120]
[320743908,1711543887794,-500.0,0.0005589,120]
[320743909,1711543887804,-500.0,0.0005589,7]
[320743910,1711543887814,-991.15,0.0005589,120]
[320743911,1711543887824,-500.0,0.0005589,120]
[320743912,1711543887835,-500.0,0.0005589,120]
[320743913,1711543887846,-684.84,0.0005589,120]
[320743914,1711543887856,-500.0,0.0005589,120]
[320743915,1711543887866,-670.41,0.0005589,120]
[320743916,1711543887877,-500.0,0.0005589,120]
[320743917,1711543887887,-688.53,0.0005589,120]
[320743918,1711543887898,-10352.43,0.0005589,120]
[320743919,1711543887908,-759.99,0.0005589,120]
[320743920,1711543887918,-8690.1,0.0005589,120]
[320743921,1711543887928,-5002.55,0.0005589,120]
[320743922,1711543887939,-4330.07,0.0005589,120]
[320743923,1711543887948,-2895.84,0.0005589,120]
[320743924,1711543887959,-2172.19,0.0005589,120]
[320743925,1711543887969,-500.0,0.0005589,120]
[320743926,1711543887979,-500.0,0.0005589,120]
[320743927,1711543887989,-500.0,0.0005589,120]
[320743928,1711543887999,-2732.75,0.0005589,120]
[320743929,1711543888009,-1796.45,0.0005589,120]
[320743930,1711543888020,-5480.38,0.0005589,120]
[320743931,1711543888030,-16950.66,0.0005589,120]
[320743932,1711543888040,-500.0,0.0005589,120]
[320743933,1711543888051,-285.86,0.0005589,120]
[320743934,1711543888061,-500.0,0.0005589,120]
[320743935,1711543888072,-773.1,0.0005589,120]
[320743936,1711543888082,-3400.43,0.0005589,120]
[320743937,1711543888092,-500.0,0.0005589,120]
[320743938,1711543888106,-5091.09,0.0005589,21]
[320743939,1711543888116,-229.52,0.0005589,120]
[320743940,1711543888127,-500.0,0.0005589,120]
[320743941,1711543888137,-19292.32,0.0005589,120]
[320743942,1711543888146,-500.0,0.0005589,120]
[320743943,1711543888157,-17160.48,0.0005589,120]
[320743944,1711543888166,-8474.88,0.0005589,120]
[320743945,1711543888177,-500.0,0.0005589,120]
[320743946,1711543888187,-649.49,0.0005589,120]
[320743947,1711543888196,-2690.5,0.0005589,120]
[320743948,1711543888206,-4740.83,0.0005589,120]
[320743949,1711543888217,-938.28,0.0005589,120]
[320743950,1711543888227,-12410.62,0.0005589,120]
[320743951,1711543888236,-4103.23,0.0005589,120]
[320743952,1711543888246,-3583.19,0.0005589,120]
[320743953,1711543888255,-886.33,0.0005589,120]
[320743954,1711543888264,-672.63,0.0005589,120]
[320743955,1711543888275,-4086.57,0.0005589,120]
[320743956,1711543888284,-500.0,0.0005589,120]
[320743957,1711543888294,-500.0,0.0005589,120]
[320743958,1711543888304,-8381.34,0.0005589,120]
[320743959,1711543888314,-512.61,0.0005589,120]
[320743960,1711543888324,-499.0,0.0005589,120]
[320743961,1711543888334,-34309.32,0.0005589,120]
[320743962,1711543888343,-6247.3,0.0005589,120]
[320743963,1711543888354,-1388.52,0.0005589,120]
[320743964,1711543888364,-1173.99,0.0005589,120]
[320743965,1711543888374,-3278.85,0.0005589,120]
[320743966,1711543888384,-8798.58,0.0005589,120]
[320743967,1711543888394,-500.0,0.0005589,120]
[320743968,1711543888403,-500.0,0.0005589,120]
[320743969,1711543888413,-2480.34,0.0005589,120]
[320743970,1711543888422,-500.0,0.0005589,85]
[320743971,1711543888436,-500.0,0.0005589,120]